bitfinex/quotes_BTCUSD_20250313
["timestamp","ask_amount","ask_price","bid_price","bid_amount"]
[1741886090817,0.247727,80734.0,80731.0,0.11786989]
[1741886091018,0.24772,80737.0,80731.0,0.11786989]
[1741886091354,0.001,80732.0,80731.0,0.13112814]
[1741886091795,0.001,80732.0,80731.0,0.11786989]
[1741886092145,0.247733,80733.0,80731.0,0.11786989]
[1741886092146,0.260119,80733.0,80731.0,0.0001689]
[1741886092324,0.012386,80732.0,80731.0,0.0001689]
[1741886092526,0.03178655,80732.0,80731.0,0.0001689]
[1741886093161,0.012386,80732.0,80731.0,0.0001689]
[1741886093568,0.248733,80733.0,80731.0,0.0001689]
[1741886093790,0.248733,80733.0,80731.0,0.0011689]
[1741886093988,0.247733,80733.0,80731.0,0.0011689]
[1741886094283,0.247733,80733.0,80731.0,0.0031689]
[1741886094655,0.247733,80733.0,80731.0,0.0001689]
[1741886095055,0.247733,80733.0,80731.0,0.0011689]
[1741886095506,0.247717,80737.0,80731.0,0.0011689]
[1741886095696,0.247723,80736.0,80731.0,0.0011689]
[1741886095950,0.247726,80735.0,80731.0,0.0011689]
[1741886096146,0.247726,80735.0,80731.0,0.002058]
[1741886096147,0.247733,80732.0,80731.0,0.002058]
[1741886096351,0.247733,80732.0,80731.0,0.001058]
[1741886096589,0.247733,80732.0,80731.0,0.002058]
[1741886096992,0.247733,80732.0,80731.0,0.001058]
[1741886097354,0.247733,80732.0,80731.0,0.003058]
[1741886097554,0.260119,80732.0,80731.0,0.00194807]
[1741886098071,0.247733,80732.0,80731.0,0.00194807]
[1741886098530,0.247733,80732.0,80731.0,0.00294807]
[1741886099441,0.260119,80732.0,80731.0,0.00285531]
[1741886100438,0.247733,80732.0,80731.0,0.00285531]
[1741886100844,0.260119,80732.0,80731.0,0.00273307]
[1741886101377,0.247729,80734.0,80731.0,0.00273307]
[1741886101577,0.03752635,80746.0,80731.0,0.00273307]
[1741886101578,0.02514235,80746.0,80737.0,0.012385]
[1741886101787,0.24773,80733.0,80731.0,0.00273307]
[1741886101990,0.01393428,80732.0,80731.0,0.00273307]
[1741886102190,0.012386,80732.0,80731.0,0.00273307]
[1741886102351,0.012386,80732.0,80731.0,0.00173307]
[1741886102551,0.01230079,80732.0,80731.0,0.00173307]
[1741886102775,0.01230079,80732.0,80731.0,7e-08]
[1741886102776,0.43355039,80732.0,80731.0,7e-08]
[1741886102955,0.43233958,80732.0,80731.0,7e-08]
[1741886103356,0.012388,80718.0,80716.0,0.02319631]
[1741886103559,0.247793,80713.0,80711.0,7.431e-05]
[1741886103797,0.260182,80713.0,80711.0,7.431e-05]
[1741886104001,0.247793,80713.0,80711.0,7.431e-05]
[1741886104201,0.012389,80712.0,80711.0,7.431e-05]
[1741886104780,0.13363889,80712.0,80711.0,7.431e-05]
[1741886104975,0.13208999,80712.0,80711.0,7.431e-05]
[1741886105190,0.50963901,80712.0,80711.0,3.1e-07]
[1741886105393,0.3,80705.0,80701.0,9.1e-07]
[1741886105652,0.247883,80683.0,80675.0,0.012395]
[1741886105791,0.247872,80687.0,80679.0,0.012394]
[1741886106001,0.247892,80680.0,80674.0,0.012395]
[1741886106203,0.012394,80681.0,80672.0,0.0125639]
[1741886106400,0.247903,80677.0,80672.0,0.11986989]
[1741886106595,0.247899,80679.0,80672.0,0.13226489]
[1741886106821,0.247903,80677.0,80672.0,0.11986989]
[1741886107201,0.247903,80677.0,80672.0,0.0001689]
[1741886107384,0.247888,80682.0,80672.0,0.0145639]
[1741886107587,0.247894,80680.0,80674.0,0.247911]
[1741886107803,0.247899,80678.0,80672.0,0.0125639]
[1741886108013,0.247899,80678.0,80672.0,0.0155639]
[1741886108212,0.247909,80675.0,80672.0,0.0061689]
[1741886108415,0.247914,80674.0,80672.0,0.0031689]
[1741886108991,0.247914,80674.0,80672.0,0.00294288]
[1741886109930,0.012395,80673.0,80672.0,0.00294288]
[1741886110102,0.247935,80666.0,80665.0,0.0001689]
[1741886111500,0.260331,80666.0,80665.0,0.0001689]
[1741886112029,0.247935,80666.0,80665.0,5.736e-05]
[1741886112230,0.260331,80666.0,80665.0,0.00405736]
[1741886113431,0.012397,80661.0,80650.0,9.477e-05]
[1741886113641,0.247968,80656.0,80651.0,0.11970099]
[1741886113998,0.247973,80654.0,80651.0,0.11970099]
[1741886114173,0.247978,80652.0,80651.0,0.11970099]
[1741886114529,0.247973,80654.0,80651.0,1.61970099]
[1741886114739,0.247948,80662.0,80655.0,0.012398]
[1741886114938,0.247956,80660.0,80651.0,1.63209999]
[1741886115140,0.247948,80662.0,80654.0,0.012398]
[1741886115363,0.247957,80659.0,80655.0,0.012398]
[1741886115593,0.24796,80659.0,80653.0,0.260371]
[1741886115769,0.247951,80661.0,80655.0,0.247969]
[1741886115969,0.29539004,80700.0,80673.0,0.247914]
[1741886116170,0.012392,80691.0,80675.0,0.260303]
[1741886116393,0.247893,80680.0,80675.0,0.247907]
[1741886116591,0.247903,80677.0,80676.0,1.5]
[1741886116794,0.012392,80693.0,80679.0,0.012394]
[1741886116995,0.05,80711.0,80679.0,0.012394]
[1741886116996,0.10849876,80704.0,80684.0,0.012394]
[1741886117155,0.247862,80691.0,80679.0,0.15464]
[1741886117357,0.247887,80682.0,80679.0,0.11970099]
[1741886117578,0.247887,80682.0,80675.0,0.4172]
[1741886117579,0.247904,80677.0,80675.0,0.4172]
[1741886117828,0.012395,80676.0,80675.0,0.4172]
[1741886118076,0.012395,80676.0,80675.0,0.4192]
[1741886118281,0.247904,80677.0,80675.0,0.4192]
[1741886118848,0.012395,80676.0,80675.0,0.4172]
[1741886119055,0.247959,80659.0,80653.0,0.4172]
[1741886119246,0.247957,80660.0,80654.0,0.38006799]
[1741886119461,0.012396,80667.0,80654.0,0.11970099]
[1741886119663,0.247972,80654.0,80653.0,0.4172]
[1741886119865,0.247969,80656.0,80653.0,0.4172]
[1741886120242,0.247972,80654.0,80653.0,0.4172]
[1741886120671,0.247961,80658.0,80653.0,0.4172]
[1741886120824,0.01941901,80659.0,80653.0,0.4172]
[1741886121023,0.01941901,80659.0,80654.0,0.26037]
[1741886121279,0.26737901,80659.0,80654.0,0.26037]
[1741886121451,0.247963,80657.0,80653.0,0.4212]
[1741886121653,0.01941901,80659.0,80653.0,0.687571]
[1741886121851,0.01941901,80659.0,80655.0,0.012398]
[1741886122335,0.01941901,80659.0,80656.0,0.012398]
[1741886122504,0.01941901,80659.0,80654.0,0.002]
[1741886122750,0.247969,80656.0,80654.0,0.002]
[1741886123251,0.247969,80656.0,80653.0,0.4172]
[1741886123252,0.247972,80654.0,80653.0,0.4172]
[1741886123796,0.247966,80657.0,80653.0,0.4172]
[1741886124214,0.01941901,80659.0,80656.0,0.012398]
[1741886124478,0.01941901,80659.0,80658.0,0.012398]
[1741886124605,0.01941901,80659.0,80658.0,1.5]
[1741886125803,0.01941901,80659.0,80653.0,0.002]
[1741886125804,0.26037,80654.0,80653.0,0.002]
[1741886126402,0.26037,80654.0,80650.0,9.477e-05]
[1741886126639,0.260381,80651.0,80650.0,9.477e-05]
[1741886126847,0.53472199,80651.0,80650.0,9.477e-05]
[1741886127071,0.53472199,80651.0,80650.0,7.7e-07]
[1741886127697,0.83472199,80651.0,80650.0,7.7e-07]
[1741886128031,0.548,80645.0,80644.0,1.7e-07]
[1741886128242,0.68010099,80645.0,80644.0,1.7e-07]
[1741886128439,0.68010099,80645.0,80630.0,0.0001689]
[1741886128440,0.260442,80632.0,80630.0,0.0001689]
[1741886128613,0.38014299,80632.0,80630.0,0.0001689]
[1741886128792,0.53482299,80632.0,80630.0,0.0001689]
[1741886128995,0.312402,80631.0,80630.0,9e-07]
[1741886129198,0.43210299,80631.0,80630.0,9e-07]
[1741886130963,0.44664384,80631.0,80630.0,9e-07]
[1741886131187,0.60432384,80631.0,80630.0,9e-07]
[1741886131413,0.64228131,80631.0,80630.0,9e-07]
[1741886131620,0.71171238,80631.0,80630.0,9e-07]
[1741886131811,0.72004471,80631.0,80630.0,9e-07]
[1741886132001,0.51236471,80631.0,80630.0,9e-07]
[1741886132154,0.67204471,80631.0,80630.0,9e-07]
[1741886132356,0.72704471,80631.0,80630.0,9e-07]
[1741886132613,0.8520056,80631.0,80630.0,9e-07]
[1741886132937,0.73204471,80631.0,80630.0,9e-07]
[1741886133741,0.67704471,80631.0,80630.0,9e-07]
[1741886133945,0.73204471,80631.0,80630.0,9e-07]
[1741886134232,0.72704471,80631.0,80630.0,9e-07]
[1741886134441,0.73204471,80631.0,80630.0,9e-07]
[1741886134644,0.68204471,80631.0,80630.0,9e-07]
[1741886134843,0.67704471,80631.0,80630.0,9e-07]
[1741886135053,0.19542186,80631.0,80630.0,9e-07]
[1741886135259,0.0562898,80631.0,80630.0,9e-07]
[1741886135484,0.01833233,80631.0,80630.0,0.2604489]
[1741886135688,0.01833233,80631.0,80630.0,0.38014989]
[1741886135689,0.01,80631.0,80630.0,0.38014989]
[1741886135905,0.01,80631.0,80630.0,0.68014989]
[1741886136479,0.01,80631.0,80630.0,0.41970189]
[1741886136692,0.005,80631.0,80630.0,0.3000009]
[1741886136966,0.01817778,80631.0,80630.0,9e-07]
[1741886137163,0.01,80631.0,80630.0,9e-07]
[1741886137361,0.01317778,80631.0,80630.0,9e-07]
[1741886137501,0.00817778,80631.0,80630.0,9e-07]
[1741886137833,0.00817778,80631.0,80630.0,0.2604489]
[1741886138080,0.248032,80635.0,80630.0,0.0124029]
[1741886138233,0.0081737,80631.0,80630.0,9e-07]
[1741886138437,0.248042,80632.0,80630.0,9e-07]
[1741886138693,0.0081737,80631.0,80630.0,9e-07]
[1741886139053,0.0081737,80631.0,80630.0,0.2604489]
[1741886139426,0.248023,80638.0,80631.0,0.012402]
[1741886139626,0.248023,80638.0,80630.0,0.2604489]
[1741886139627,0.247986,80650.0,80642.0,0.0124]
[1741886139897,0.247986,80650.0,80636.0,0.012401]
[1741886139898,0.0124,80644.0,80632.0,0.11970099]
[1741886140120,0.248043,80632.0,80630.0,9e-07]
[1741886140258,0.01384794,80631.0,80630.0,9e-07]
[1741886140457,0.012402,80631.0,80630.0,9e-07]
[1741886140687,0.02211061,80631.0,80630.0,9e-07]
[1741886140885,0.14026124,80631.0,80630.0,9e-07]
[1741886141088,0.16123884,80631.0,80630.0,9e-07]
[1741886141518,0.03998724,80631.0,80630.0,9e-07]
[1741886142174,0.02758524,80631.0,80630.0,9e-07]
[1741886142442,0.00815825,80631.0,80630.0,0.0124029]
[1741886142918,0.248036,80634.0,80630.0,9e-07]
[1741886143175,0.248041,80632.0,80630.0,9e-07]
[1741886143385,0.00814565,80633.0,80632.0,0.012402]
[1741886143589,0.248028,80636.0,80631.0,0.248043]
[1741886143795,0.248024,80638.0,80630.0,9e-07]
[1741886143796,0.00814565,80633.0,80630.0,9e-07]
[1741886143942,0.248027,80637.0,80630.0,0.2604459]
[1741886144151,0.00814565,80632.0,80630.0,0.0124029]
[1741886144330,0.012398,80658.0,80641.0,0.0124]
[1741886144529,0.248009,80642.0,80638.0,0.012401]
[1741886144738,0.248015,80641.0,80635.0,0.260429]
[1741886144940,0.248,80646.0,80638.0,0.260422]
[1741886145145,0.02473868,80658.0,80639.0,0.68011899]
[1741886145146,0.00814565,80640.0,80639.0,0.68011899]
[1741886145349,0.247967,80656.0,80650.0,0.012399]
[1741886145545,0.247973,80654.0,80650.0,0.11970099]
[1741886145819,0.247973,80654.0,80651.0,1.5]
[1741886146425,0.247967,80656.0,80638.0,0.248021]
[1741886146569,0.24801,80642.0,80640.0,0.11970099]
[1741886147102,0.00820686,80641.0,80640.0,0.11970099]
[1741886147646,0.00809701,80641.0,80640.0,0.11970099]
[1741886148264,0.00809701,80641.0,80640.0,0.68211599]
[1741886148464,0.247966,80656.0,80650.0,0.247983]
[1741886148679,0.247966,80656.0,80650.0,0.11970099]
[1741886148839,0.01287045,80664.0,80646.0,0.012399]
[1741886148840,0.012397,80661.0,80646.0,0.012399]
[1741886149040,0.012397,80661.0,80642.0,0.0124]
[1741886149041,0.24798,80652.0,80643.0,0.0124]
[1741886149254,0.247988,80649.0,80645.0,0.0124]
[1741886149406,0.247981,80652.0,80643.0,0.248006]
[1741886149607,0.247981,80652.0,80643.0,0.260406]
[1741886149890,0.247982,80651.0,80643.0,0.260406]
[1741886150111,0.247988,80649.0,80642.0,0.11970099]
[1741886150219,0.247988,80649.0,80642.0,0.13210099]
[1741886150429,0.247988,80649.0,80642.0,0.38010699]
[1741886150624,0.24785884,80652.0,80645.0,0.0114]
[1741886150834,0.247964,80657.0,80647.0,0.012399]
[1741886151034,0.247981,80652.0,80647.0,0.012399]
[1741886151491,0.247981,80652.0,80647.0,0.260391]
[1741886151795,0.247984,80651.0,80646.0,0.247997]
[1741886152025,0.247965,80657.0,80636.0,0.012401]
[1741886152026,0.247994,80647.0,80636.0,0.012401]
[1741886152224,0.247994,80647.0,80634.0,0.248031]
[1741886152225,0.24790674,80641.0,80640.0,0.11970099]
[1741886153113,0.248006,80643.0,80630.0,0.0124029]
[1741886153114,0.0124,80643.0,80630.0,9e-07]
[1741886153324,0.0124,80643.0,80630.0,0.2480449]
[1741886153538,0.248015,80642.0,80631.0,0.012402]
[1741886153727,0.248027,80637.0,80632.0,0.260441]
[1741886154030,0.247997,80647.0,80635.0,0.012401]
[1741886154205,0.24799,80649.0,80642.0,0.248007]
[1741886154409,0.248015,80641.0,80635.0,0.012401]
[1741886154616,0.24804,80632.0,80630.0,9e-07]
[1741886154994,0.24804,80632.0,80631.0,0.001]
[1741886155566,0.25626567,80632.0,80630.0,9e-07]
[1741886155791,0.25826567,80632.0,80630.0,0.0010009]
[1741886155990,0.012402,80631.0,80630.0,0.0010009]
[1741886156407,0.01395247,80631.0,80630.0,0.0010009]
[1741886156609,0.022061,80631.0,80630.0,0.0010009]
[1741886156809,0.02051053,80631.0,80630.0,0.0010009]
[1741886157648,0.03993817,80631.0,80630.0,0.0010009]
[1741886158094,0.02765331,80631.0,80630.0,0.0010009]
[1741886158535,0.04005531,80631.0,80630.0,0.0010009]
[1741886158739,0.02765331,80631.0,80630.0,9e-07]
[1741886159621,0.1597563,80631.0,80630.0,9e-07]
[1741886160337,0.47584772,80631.0,80630.0,9e-07]
[1741886160484,0.60169715,80631.0,80630.0,9e-07]
[1741886160704,0.02765331,80631.0,80630.0,0.2604489]
[1741886160918,0.01942764,80631.0,80630.0,0.2604489]
[1741886161096,0.0273218,80631.0,80630.0,0.2480469]
[1741886161277,0.248007,80643.0,80632.0,0.24804]
[1741886161482,0.248024,80638.0,80631.0,0.012402]
[1741886161780,0.01942529,80642.0,80636.0,0.012401]
[1741886161984,0.01942529,80642.0,80636.0,0.007401]
[1741886162189,0.01942529,80642.0,80637.0,0.012401]
[1741886162387,0.248012,80642.0,80636.0,0.007401]
[1741886162607,0.248012,80642.0,80637.0,0.248025]
[1741886162828,0.0194233,80648.0,80643.0,0.260403]
[1741886163034,0.0003382,80654.0,80651.0,0.012399]
[1741886163242,0.0003382,80654.0,80653.0,0.260373]
[1741886163413,0.0003382,80654.0,80653.0,0.259373]
[1741886163626,0.0003382,80654.0,80653.0,0.012398]
[1741886163938,0.0003382,80654.0,80651.0,0.26038]
[1741886163939,0.247975,80653.0,80648.0,0.260387]
[1741886164146,0.0003382,80654.0,80650.0,0.247985]
[1741886164324,0.0013382,80654.0,80650.0,0.247985]
[1741886164555,0.0003382,80654.0,80646.0,0.0458]
[1741886164896,0.247991,80648.0,80647.0,1.5]
[1741886165118,0.247987,80650.0,80647.0,1.5]
[1741886165371,0.247987,80650.0,80640.0,0.0124]
[1741886165372,0.247975,80653.0,80645.0,0.0124]
[1741886165580,0.247982,80651.0,80644.0,0.0124]
[1741886165808,0.247984,80651.0,80645.0,1.5]
[1741886166041,0.0003382,80654.0,80645.0,1.5124]
[1741886166271,0.0003382,80654.0,80653.0,0.260373]
[1741886167043,0.0003382,80654.0,80653.0,0.38007399]
[1741886167226,0.00837633,80654.0,80653.0,1.22367399]
[1741886167573,0.0003382,80654.0,80653.0,1.22367399]
[1741886167827,0.0003382,80654.0,80653.0,0.84957399]
[1741886168042,0.0003382,80654.0,80653.0,0.84657399]
[1741886168243,0.0003382,80654.0,80653.0,0.58620099]
[1741886168543,0.00842455,80654.0,80653.0,0.85157399]
[1741886168752,0.0003382,80654.0,80653.0,0.85357399]
[1741886169166,0.0003382,80654.0,80653.0,0.85157399]
[1741886169600,0.0013382,80654.0,80653.0,0.85557399]
[1741886169941,0.0013382,80654.0,80653.0,0.4212]
[1741886170141,0.01042455,80654.0,80653.0,0.009]
[1741886170311,0.00942455,80654.0,80653.0,0.004]
[1741886170673,0.00942455,80654.0,80653.0,0.009]
[1741886170674,0.25839655,80654.0,80653.0,0.009]
[1741886171536,0.25739655,80654.0,80653.0,0.004]
[1741886171737,0.25739655,80654.0,80653.0,0.008]
[1741886172203,0.25639655,80654.0,80653.0,0.004]
[1741886172385,0.00842455,80654.0,80653.0,0.004]
[1741886172620,0.00842455,80654.0,80653.0,0.008]
[1741886172621,0.25639655,80654.0,80653.0,0.008]
[1741886174688,0.55632604,80654.0,80653.0,0.008]
[1741886175296,0.55632604,80654.0,80653.0,0.00548]
[1741886176004,0.55632604,80654.0,80653.0,0.00148]
[1741886176207,0.42622705,80654.0,80653.0,0.00148]
[1741886176467,0.248009,80642.0,80635.0,0.260429]
[1741886176675,0.00803322,80641.0,80635.0,0.260429]
[1741886177030,0.00803322,80641.0,80640.0,0.0124]
[1741886177233,0.247982,80651.0,80644.0,0.0124]
[1741886177570,0.247982,80651.0,80635.0,0.260429]
[1741886177571,0.248013,80641.0,80636.0,0.248025]
[1741886177770,0.00802595,80650.0,80629.0,0.012402]
[1741886177771,0.247991,80648.0,80629.0,0.012402]
[1741886178071,0.012399,80649.0,80635.0,0.25103]
[1741886178072,0.248003,80646.0,80635.0,0.25103]
[1741886178281,0.00802595,80647.0,80634.0,0.012401]
[1741886178282,0.247993,80648.0,80642.0,0.248009]
[1741886178504,0.00803017,80645.0,80640.0,0.260415]
[1741886178661,0.248012,80642.0,80636.0,0.248028]
[1741886178868,0.248016,80640.0,80635.0,0.012401]
[1741886179062,0.248012,80642.0,80634.0,0.11970099]
[1741886179271,0.248012,80642.0,80635.0,0.248031]
[1741886179467,0.26740695,80650.0,80648.0,0.247989]
[1741886179468,0.01942195,80650.0,80648.0,0.247989]
[1741886179670,0.0003382,80654.0,80653.0,0.012398]
[1741886179878,0.0003382,80654.0,80653.0,0.38007399]
[1741886180322,0.0003382,80654.0,80653.0,1.09727399]
[1741886182291,2e-07,80654.0,80653.0,1.78167399]
[1741886182484,2e-07,80665.0,80664.0,0.560339]
[1741886182690,2e-07,80665.0,80664.0,1.88347999]
[1741886183242,2e-07,80665.0,80664.0,1.88247999]
[1741886184215,0.0010002,80665.0,80664.0,1.88747999]
[1741886184755,0.0010002,80665.0,80664.0,3.38747999]
[1741886185392,2e-07,80665.0,80664.0,3.38247999]
[1741886185774,0.0010002,80665.0,80664.0,3.38647999]
[1741886186186,2e-07,80665.0,80664.0,3.38147999]
[1741886186576,2e-07,80665.0,80664.0,3.38647999]
[1741886186779,2e-07,80665.0,80664.0,3.40102084]
[1741886186984,0.012391,80701.0,80683.0,0.012394]
[1741886187204,0.247846,80696.0,80688.0,0.012393]
[1741886187397,0.247852,80694.0,80688.0,0.010393]
[1741886187626,0.00730048,80695.0,80691.0,0.012392]
[1741886187859,0.247838,80698.0,80692.0,0.012392]
[1741886187975,0.00730048,80694.0,80692.0,0.012392]
[1741886188175,0.247845,80696.0,80691.0,0.012392]
[1741886188385,0.00730048,80693.0,80690.0,0.247862]
[1741886188604,0.247849,80695.0,80689.0,0.012393]
[1741886188811,0.00730048,80692.0,80688.0,0.258258]
[1741886189011,0.247834,80699.0,80692.0,0.012392]
[1741886189211,0.247841,80697.0,80692.0,0.012392]
[1741886189808,0.247841,80697.0,80692.0,0.260245]
[1741886190215,0.247841,80697.0,80692.0,0.012392]
[1741886190448,0.01239,80705.0,80699.0,0.260223]
[1741886190449,0.247817,80705.0,80699.0,0.260223]
[1741886190642,0.01941074,80706.0,80702.0,0.012391]
[1741886190912,0.01941074,80706.0,80705.0,0.260206]
[1741886191369,0.01941074,80706.0,80705.0,0.01239]
[1741886191569,0.01941074,80706.0,80701.0,0.012391]
[1741886191778,0.26722574,80706.0,80702.0,0.11970099]
[1741886191934,0.247819,80704.0,80702.0,0.11970099]
[1741886192541,0.26756394,80706.0,80705.0,0.547816]
[1741886192542,0.0003382,80706.0,80705.0,0.547816]
[1741886192752,0.0003382,80706.0,80705.0,1.09710699]
[1741886194365,0.0003382,80706.0,80705.0,0.12370099]
[1741886194562,0.2481512,80706.0,80705.0,0.004]
[1741886194770,0.25937776,80706.0,80703.0,0.3]
[1741886194970,0.25937776,80706.0,80702.0,0.788]
[1741886194971,0.247819,80704.0,80702.0,0.788]
[1741886195148,0.012391,80703.0,80687.0,0.012393]
[1741886195353,0.247848,80695.0,80690.0,0.247861]
[1741886195607,0.247852,80694.0,80689.0,0.3]
[1741886195821,0.247858,80692.0,80689.0,0.11970099]
[1741886196008,0.01122656,80693.0,80691.0,0.547858]
[1741886196227,0.247843,80697.0,80692.0,0.012392]
[1741886196571,0.01122656,80696.0,80691.0,0.547858]
[1741886196774,0.01122656,80696.0,80695.0,0.012392]
[1741886196975,0.0003382,80706.0,80702.0,0.004]
[1741886197193,0.247824,80703.0,80702.0,0.004]
[1741886198023,0.0003382,80706.0,80704.0,0.01239]
[1741886198226,0.0003382,80706.0,80702.0,0.016391]
[1741886198439,0.0003382,80706.0,80687.0,0.247869]
[1741886198653,0.247816,80705.0,80702.0,0.003]
[1741886198905,0.247831,80701.0,80695.0,0.260238]
[1741886199105,0.247831,80701.0,80695.0,0.37993899]
[1741886199256,0.247828,80703.0,80696.0,0.260233]
[1741886199434,0.0003382,80706.0,80704.0,0.247816]
[1741886199618,0.0003382,80706.0,80705.0,0.31239]
[1741886199832,0.0003382,80706.0,80705.0,0.3]
[1741886200033,0.0003382,80706.0,80693.0,0.012392]
[1741886200275,0.247822,80703.0,80702.0,0.004]
[1741886200449,0.247822,80703.0,80697.0,0.012392]
[1741886200651,0.247816,80705.0,80699.0,0.012391]
[1741886200858,0.247816,80705.0,80697.0,0.012392]
[1741886200859,0.247826,80702.0,80697.0,0.012392]
[1741886201242,0.0003382,80706.0,80701.0,0.247825]
[1741886201423,0.0003382,80706.0,80702.0,0.015391]
[1741886201633,0.0003382,80706.0,80702.0,0.003]
[1741886201870,0.247827,80702.0,80697.0,0.3]
[1741886202099,0.247835,80699.0,80697.0,0.303]
[1741886202278,0.247835,80699.0,80697.0,0.003]
[1741886203353,0.0003382,80706.0,80705.0,0.01239]
[1741886204599,0.0003382,80706.0,80705.0,1.51239]
[1741886204802,0.0003382,80706.0,80705.0,1.51439]
[1741886205052,0.0003382,80706.0,80705.0,1.502]
[1741886205642,0.0003382,80706.0,80705.0,0.002]
[1741886206222,0.0003382,80706.0,80705.0,0.003]
[1741886207287,0.0127282,80706.0,80705.0,0.003]
[1741886207697,0.13397821,80706.0,80705.0,0.003]
[1741886208248,0.13397821,80706.0,80705.0,0.001]
[1741886209027,0.012392,80695.0,80692.0,0.000169]
[1741886209230,0.247849,80694.0,80692.0,0.000169]
[1741886209449,0.260241,80694.0,80692.0,0.000169]
[1741886209968,0.012392,80693.0,80692.0,0.000169]
[1741886210461,0.012392,80693.0,80692.0,0.002169]
[1741886210960,0.01394119,80693.0,80692.0,0.000169]
[1741886211140,0.012392,80693.0,80692.0,0.000169]
[1741886211556,0.26726123,80694.0,80692.0,0.000169]
[1741886211727,0.26726123,80694.0,80692.0,0.003169]
[1741886211926,0.27965323,80694.0,80692.0,0.000169]
[1741886212127,0.012392,80693.0,80692.0,0.002169]
[1741886212349,0.013392,80693.0,80692.0,0.002169]
[1741886212551,0.012392,80693.0,80692.0,0.002169]
[1741886212884,0.012392,80693.0,80692.0,0.000169]
[1741886213646,0.01394123,80693.0,80692.0,0.000169]
[1741886213853,0.01394123,80693.0,80692.0,0.001169]
[1741886214286,0.012392,80693.0,80692.0,0.000169]
[1741886214447,0.27965323,80694.0,80692.0,0.000169]
[1741886214448,0.01941223,80694.0,80692.0,0.000169]
[1741886215098,0.25714797,80693.0,80692.0,0.000169]
[1741886215300,0.25914797,80693.0,80692.0,0.000169]
[1741886215658,0.25714797,80693.0,80692.0,0.000169]
[1741886217231,0.27053997,80693.0,80692.0,0.000169]
[1741886217575,0.27053997,80693.0,80692.0,0.001169]
[1741886217796,0.26953997,80693.0,80692.0,0.000169]
[1741886218815,0.27053997,80693.0,80692.0,0.000169]
[1741886220201,0.39024096,80693.0,80692.0,0.000169]
[1741886221722,0.41566445,80693.0,80692.0,0.000169]
[1741886221992,0.41566445,80693.0,80663.0,0.359997]
[1741886221993,0.247972,80654.0,80647.0,0.15456]
[1741886222203,0.247972,80654.0,80639.0,0.0253713]
[1741886222204,0.26037,80654.0,80653.0,0.0001691]
[1741886222417,0.25717796,80654.0,80653.0,0.0001691]
[1741886222627,0.00920596,80654.0,80653.0,0.0001691]
[1741886222831,0.00920596,80654.0,80653.0,0.0125671]
[1741886223044,0.0827,80688.0,80673.0,0.012395]
[1741886223249,0.0827,80688.0,80661.0,0.260347]
[1741886223250,0.247938,80666.0,80661.0,0.260347]
[1741886223449,0.012395,80672.0,80662.0,0.11970099]
[1741886223584,0.247944,80664.0,80662.0,0.11970099]
[1741886223784,0.260322,80669.0,80653.0,0.0001691]
[1741886223785,0.247961,80658.0,80653.0,0.0001691]
[1741886223984,0.247969,80655.0,80653.0,0.0001691]
[1741886224372,0.012398,80654.0,80653.0,0.0001691]
[1741886224572,0.02146309,80654.0,80653.0,0.0001691]
[1741886224906,0.02146309,80654.0,80653.0,0.0052091]
[1741886225321,0.02146309,80654.0,80653.0,0.0002091]
[1741886226734,0.02146309,80654.0,80653.0,0.0062091]
[1741886227140,0.02146309,80654.0,80653.0,0.0042091]
[1741886227340,0.02146309,80654.0,80653.0,0.0002091]
[1741886227555,0.02146309,80654.0,80653.0,0.0022091]
[1741886229417,0.00906509,80654.0,80653.0,0.0022091]
[1741886230534,0.02146309,80654.0,80653.0,0.0022091]
[1741886230959,0.00906509,80654.0,80653.0,0.0022091]
[1741886231778,0.02146309,80654.0,80653.0,0.0022091]
[1741886232553,0.00906509,80654.0,80653.0,0.0022091]
[1741886233310,0.00906509,80654.0,80653.0,0.0146071]
[1741886233518,0.00906509,80654.0,80653.0,0.0022091]
[1741886233727,0.01942027,80655.0,80653.0,0.0022091]
[1741886233933,0.00902017,80654.0,80653.0,0.0022091]
[1741886234088,0.02141817,80654.0,80653.0,0.0022091]
[1741886234488,0.00902017,80654.0,80653.0,0.0022091]
[1741886234687,0.00902017,80654.0,80653.0,0.0002091]
[1741886235098,0.00902017,80654.0,80653.0,0.0012091]
[1741886235569,0.25699217,80654.0,80653.0,0.0012091]
[1741886236102,0.25699217,80654.0,80653.0,0.0032091]
[1741886237258,0.25699217,80654.0,80653.0,0.0022091]
[1741886237456,0.26939017,80654.0,80653.0,0.0042091]
[1741886240798,0.25699217,80654.0,80653.0,0.0042091]
[1741886242009,0.26939017,80654.0,80653.0,0.0042091]
[1741886242769,0.25699217,80654.0,80653.0,0.0042091]
[1741886242997,0.00902017,80654.0,80653.0,0.2645821]
[1741886243193,0.24797,80655.0,80653.0,0.0042091]
[1741886243395,0.00897314,80654.0,80653.0,0.0042091]
[1741886244059,0.00897314,80654.0,80653.0,0.0022091]
[1741886244222,0.02137114,80654.0,80653.0,0.0022091]
[1741886244504,0.0407933,80654.0,80653.0,0.0032091]
[1741886244804,0.0427933,80654.0,80653.0,0.0022091]
[1741886245208,0.0303953,80654.0,80653.0,0.0022091]
[1741886245633,0.0427933,80654.0,80653.0,0.0022091]
[1741886246366,0.0427933,80654.0,80653.0,0.0042091]
[1741886247818,0.0443433,80654.0,80653.0,0.0042091]
[1741886253169,0.0303953,80654.0,80653.0,0.0042091]
[1741886253695,0.0303953,80654.0,80653.0,0.0037091]
[1741886253903,0.0427933,80654.0,80653.0,0.0037091]
[1741886255207,0.0303953,80654.0,80653.0,0.0037091]
[1741886255596,0.0427933,80654.0,80653.0,0.0037091]
[1741886256959,0.16404435,80654.0,80653.0,0.0037091]
[1741886257158,0.260445,80631.0,80614.0,0.0468]
[1741886257364,0.260445,80631.0,80615.0,0.248092]
[1741886257608,0.26932362,80631.0,80616.0,0.05120009]
[1741886257761,0.25692162,80631.0,80620.0,0.248074]
[1741886257961,0.27634831,80631.0,80622.0,0.012403]
[1741886258162,0.27634831,80631.0,80619.0,0.012404]
[1741886258361,0.28975031,80631.0,80630.0,0.0010009]